[Event "January 2 Late 2024"]
[Site "https://www.chess.com"]
[Date "2024.01.02"]
[Round "9"]
[White "Matta, Nicholas"]
[Black "Bachmann, Axel"]
[Result "0-1"]
[Board "56"]
[TimeControl "180+1"]
[WhiteFideId "30914523"]
[BlackFideId "3700488"]
[WhiteElo "2556"]
[BlackElo "2806"]
[WhiteTeam "USA"]
[BlackTeam "PAR"]
[WhiteClock "0:00:06"]
[BlackClock "0:00:35"]

1. Nf3 {[%clk 0:03:00]}  Nf6 {[%clk 0:02:58]} 2. g3 {[%clk 0:03:01]}  b6 {[%clk 0:02:54]} 3. Bg2 {[%clk 0:03:00]}  Bb7 {[%clk 0:02:55]} 4. O-O {[%clk 0:03:01]}  g6 {[%clk 0:02:54]} 5. d4 {[%clk 0:03:00]}  Bg7 {[%clk 0:02:49]} 6. c4 {[%clk 0:03:01]}  e6 {[%clk 0:02:48]} 7. Nc3 {[%clk 0:02:32]}  Ne4 {[%clk 0:02:48]} 8. Nxe4 {[%clk 0:02:25]}  Bxe4 {[%clk 0:02:49]} 9. Bg5 {[%clk 0:02:26]}  Qc8 {[%clk 0:02:48]} 10. Qd2 {[%clk 0:02:24]}  Qb7 {[%clk 0:02:35]} 11. Rfd1 {[%clk 0:02:16]}  h6 {[%clk 0:02:34]} 12. Bf4 {[%clk 0:02:11]}  d6 {[%clk 0:02:35]} 13. d5 {[%clk 0:02:01]}  e5 {[%clk 0:02:32]} 14. Be3 {[%clk 0:02:01]}  f5 {[%clk 0:01:58]} 15. Nh4 {[%clk 0:01:55]}  Bxg2 {[%clk 0:01:56]} 16. Nxg6 {[%clk 0:01:55]}  Bh3 {[%clk 0:01:54]} 17. Nxh8 {[%clk 0:01:54]}  Bxh8 {[%clk 0:01:55]} 18. Bxh6 {[%clk 0:01:54]}  f4 {[%clk 0:01:55]} 19. Bxf4 {[%clk 0:01:23]}  exf4 {[%clk 0:01:48]} 20. Qxf4 {[%clk 0:01:24]}  Qc8 {[%clk 0:01:44]} 21. Qh6 {[%clk 0:01:21]}  Kf7 {[%clk 0:01:30]} 22. Qh5+ {[%clk 0:01:11]}  Kg8 {[%clk 0:01:30]} 23. Rd3 {[%clk 0:00:59]}  Qf5 {[%clk 0:01:09]} 24. Qe8+ {[%clk 0:00:57]}  Qf8 {[%clk 0:01:10]} 25. Qg6+ {[%clk 0:00:48]}  Qg7 {[%clk 0:01:04]} 26. Qe8+ {[%clk 0:00:48]}  Kh7 {[%clk 0:01:05]} 27. Re3 {[%clk 0:00:43]}  Bd7 {[%clk 0:01:01]} 28. Qh5+ {[%clk 0:00:41]}  Qh6 {[%clk 0:01:02]} 29. Re7+ {[%clk 0:00:39]}  Bg7 {[%clk 0:01:02]} 30. Qf3 {[%clk 0:00:35]}  Qg5 {[%clk 0:00:59]} 31. Qf7 {[%clk 0:00:30]}  Bh3 {[%clk 0:00:49]} 32. Rxc7 {[%clk 0:00:27]}  Na6 {[%clk 0:00:47]} 33. Rxa7 {[%clk 0:00:25]}  Rxa7 {[%clk 0:00:48]} 34. Qxa7 {[%clk 0:00:25]}  Nc5 {[%clk 0:00:43]} 35. Qxb6 {[%clk 0:00:21]}  Qe5 {[%clk 0:00:43]} 36. Re1 {[%clk 0:00:13]}  Qe4 {[%clk 0:00:41]} 37. f3 {[%clk 0:00:09]}  Qe3+ {[%clk 0:00:41]} 38. Kh1 {[%clk 0:00:09]}  Qf2 {[%clk 0:00:35]} 39. Rg1 {[%clk 0:00:08]}  Bd4 {[%clk 0:00:35]} 40. Qc7+ {[%clk 0:00:06]}  Nd7 {[%clk 0:00:35]} 0-1

[Event "January 2 Late 2024"]
[Site "https://www.chess.com"]
[Date "2024.01.02"]
[Round "9"]
[White "Rama, Tejas"]
[Black "Chirilov, James A"]
[Result "1-0"]
[Board "58"]
[TimeControl "180+1"]
[WhiteFideId "30907381"]
[BlackFideId "30976677"]
[WhiteElo "2560"]
[BlackElo "2773"]
[WhiteTeam "USA"]
[BlackTeam "USA"]
[WhiteClock "0:00:20"]
[BlackClock "0:00:00"]

1. d4 {[%clk 0:03:00]}  Nf6 {[%clk 0:02:59]} 2. c4 {[%clk 0:03:00]}  g6 {[%clk 0:03:00]} 3. Nf3 {[%clk 0:03:00]}  Bg7 {[%clk 0:03:01]} 4. Nc3 {[%clk 0:03:01]}  O-O {[%clk 0:03:01]} 5. e4 {[%clk 0:03:01]}  d6 {[%clk 0:03:02]} 6. Be2 {[%clk 0:03:02]}  e5 {[%clk 0:02:59]} 7. Be3 {[%clk 0:03:02]}  Ng4 {[%clk 0:02:56]} 8. Bg5 {[%clk 0:03:02]}  f6 {[%clk 0:02:56]} 9. Bc1 {[%clk 0:03:02]}  Nd7 {[%clk 0:02:43]} 10. O-O {[%clk 0:02:57]}  Nh6 {[%clk 0:02:31]} 11. d5 {[%clk 0:02:04]}  Nf7 {[%clk 0:02:28]} 12. b4 {[%clk 0:02:03]}  f5 {[%clk 0:02:27]} 13. Nd2 {[%clk 0:01:59]}  a5 {[%clk 0:02:25]} 14. bxa5 {[%clk 0:01:54]}  Rxa5 {[%clk 0:02:24]} 15. Nb3 {[%clk 0:01:53]}  Ra8 {[%clk 0:02:24]} 16. a4 {[%clk 0:01:52]}  Nf6 {[%clk 0:02:13]} 17. exf5 {[%clk 0:01:44]}  gxf5 {[%clk 0:02:08]} 18. c5 {[%clk 0:01:44]}  Kh8 {[%clk 0:02:06]} 19. a5 {[%clk 0:01:33]}  Rg8 {[%clk 0:02:00]} 20. cxd6 {[%clk 0:01:21]}  Nxd6 {[%clk 0:01:50]} 21. Nc5 {[%clk 0:01:18]}  Qe8 {[%clk 0:01:47]} 22. Qb3 {[%clk 0:01:10]}  Qg6 {[%clk 0:01:42]} 23. Re1 {[%clk 0:01:03]}  f4 {[%clk 0:01:34]} 24. Ra4 {[%clk 0:00:47]}  Bh6 {[%clk 0:01:28]} 25. Bf3 {[%clk 0:00:42]}  Bg4 {[%clk 0:01:27]} 26. N3e4 {[%clk 0:00:37]}  Nf5 {[%clk 0:01:13]} 27. Nxf6 {[%clk 0:00:33]}  Qxf6 {[%clk 0:01:06]} 28. Bb2 {[%clk 0:00:33]}  Rae8 {[%clk 0:00:34]} 29. Nd7 {[%clk 0:00:33]}  Bxf3 {[%clk 0:00:02]} 30. Nxf6 {[%clk 0:00:27]}  Rxg2+ {[%clk 0:00:02]} 31. Kf1 {[%clk 0:00:28]}  Nh4 {[%clk 0:00:01]} 32. Nxe8 {[%clk 0:00:19]}  Rxh2 {[%clk 0:00:02]} 33. Bxe5+ {[%clk 0:00:19]}  Bg7 {[%clk 0:00:01]} 34. Bxg7+ {[%clk 0:00:19]}  Kg8 {[%clk 0:00:00]} 35. d6+ {[%clk 0:00:20]} 1-0

[Event "January 2 Late 2024"]
[Site "https://www.chess.com"]
[Date "2024.01.02"]
[Round "9"]
[White "Carlsson, Ludvig"]
[Black "Ismayil, Malak"]
[Result "1/2-1/2"]
[Board "59"]
[TimeControl "180+1"]
[WhiteFideId "1727010"]
[BlackFideId "13412604"]
[WhiteElo "2698"]
[BlackElo "2531"]
[WhiteTeam "SWE"]
[BlackTeam "AZE"]
[WhiteClock "0:00:09"]
[BlackClock "0:00:06"]

1. e4 {[%clk 0:03:00]}  e5 {[%clk 0:02:29]} 2. Nf3 {[%clk 0:03:00]}  Nc6 {[%clk 0:02:29]} 3. Nc3 {[%clk 0:02:59]}  Nf6 {[%clk 0:02:28]} 4. d4 {[%clk 0:03:00]}  exd4 {[%clk 0:02:29]} 5. Nxd4 {[%clk 0:03:00]}  Nxd4 {[%clk 0:02:30]} 6. Qxd4 {[%clk 0:03:00]}  d6 {[%clk 0:02:30]} 7. Bc4 {[%clk 0:02:56]}  Be7 {[%clk 0:02:31]} 8. O-O {[%clk 0:02:53]}  O-O {[%clk 0:02:31]} 9. Re1 {[%clk 0:02:53]}  Nd7 {[%clk 0:02:31]} 10. Nd5 {[%clk 0:02:52]}  Nb6 {[%clk 0:02:31]} 11. Nxe7+ {[%clk 0:02:49]}  Qxe7 {[%clk 0:02:31]} 12. Bd3 {[%clk 0:02:45]}  f6 {[%clk 0:02:04]} 13. b3 {[%clk 0:02:43]}  Be6 {[%clk 0:02:03]} 14. c4 {[%clk 0:02:40]}  Nd7 {[%clk 0:02:01]} 15. Bb2 {[%clk 0:02:38]}  Nc5 {[%clk 0:01:58]} 16. Bf1 {[%clk 0:02:38]}  a5 {[%clk 0:01:58]} 17. Rad1 {[%clk 0:02:37]}  Rad8 {[%clk 0:01:56]} 18. Qc3 {[%clk 0:02:32]}  b6 {[%clk 0:01:56]} 19. Re3 {[%clk 0:02:17]}  Rfe8 {[%clk 0:01:50]} 20. Kh1 {[%clk 0:02:14]}  Bg4 {[%clk 0:01:47]} 21. Rde1 {[%clk 0:02:02]}  Bh5 {[%clk 0:01:30]} 22. Qd4 {[%clk 0:01:54]}  Bg6 {[%clk 0:01:28]} 23. f3 {[%clk 0:01:53]}  Ne6 {[%clk 0:01:24]} 24. Qd5 {[%clk 0:01:51]}  Qf7 {[%clk 0:01:24]} 25. Rd3 {[%clk 0:01:47]}  Nf4 {[%clk 0:01:22]} 26. Qxf7+ {[%clk 0:01:47]}  Bxf7 {[%clk 0:01:23]} 27. Rdd1 {[%clk 0:01:48]}  Re7 {[%clk 0:01:20]} 28. Kg1 {[%clk 0:01:48]}  Rde8 {[%clk 0:01:21]} 29. Kf2 {[%clk 0:01:48]}  Ne6 {[%clk 0:01:20]} 30. Bc3 {[%clk 0:01:46]}  Nc5 {[%clk 0:01:20]} 31. Rc1 {[%clk 0:01:38]}  Bg6 {[%clk 0:01:12]} 32. h4 {[%clk 0:01:37]}  h5 {[%clk 0:01:12]} 33. Rcd1 {[%clk 0:01:34]}  Bf7 {[%clk 0:01:10]} 34. Kg3 {[%clk 0:01:33]}  Kh7 {[%clk 0:01:08]} 35. Kf2 {[%clk 0:01:30]}  Bg6 {[%clk 0:01:08]} 36. Re2 {[%clk 0:01:29]}  Kg8 {[%clk 0:00:48]} 37. Red2 {[%clk 0:01:27]}  Bxe4 {[%clk 0:00:45]} 38. Re1 {[%clk 0:01:12]}  Bg6 {[%clk 0:00:40]} 39. Rxe7 {[%clk 0:01:11]}  Rxe7 {[%clk 0:00:41]} 40. g3 {[%clk 0:01:09]}  Bf7 {[%clk 0:00:37]} 41. Bd4 {[%clk 0:01:08]}  Ne6 {[%clk 0:00:31]} 42. Bb2 {[%clk 0:01:05]}  Nc5 {[%clk 0:00:31]} 43. Bd4 {[%clk 0:01:03]}  Na6 {[%clk 0:00:28]} 44. Bh3 {[%clk 0:00:59]}  Be6 {[%clk 0:00:26]} 45. Bg2 {[%clk 0:00:55]}  Nc5 {[%clk 0:00:23]} 46. Bf1 {[%clk 0:00:53]}  Bf5 {[%clk 0:00:22]} 47. Be2 {[%clk 0:00:52]}  Kf7 {[%clk 0:00:17]} 48. Bf1 {[%clk 0:00:52]}  Bd7 {[%clk 0:00:16]} 49. Be3 {[%clk 0:00:51]}  Bc6 {[%clk 0:00:13]} 50. Bd4 {[%clk 0:00:50]}  Ne6 {[%clk 0:00:13]} 51. Bc3 {[%clk 0:00:50]}  Nc5 {[%clk 0:00:13]} 52. Be2 {[%clk 0:00:49]}  Bd7 {[%clk 0:00:12]} 53. Bd1 {[%clk 0:00:45]}  Bf5 {[%clk 0:00:12]} 54. Be2 {[%clk 0:00:46]}  Bb1 {[%clk 0:00:11]} 55. a3 {[%clk 0:00:43]}  Nxb3 {[%clk 0:00:04]} 56. Rb2 {[%clk 0:00:43]}  Nc1 {[%clk 0:00:04]} 57. Bf1 {[%clk 0:00:41]}  Nd3+ {[%clk 0:00:03]} 58. Bxd3 {[%clk 0:00:40]}  Bxd3 {[%clk 0:00:03]} 59. g4 {[%clk 0:00:27]}  hxg4 {[%clk 0:00:03]} 60. fxg4 {[%clk 0:00:27]}  Bxc4 {[%clk 0:00:04]} 61. Rd2 {[%clk 0:00:24]}  d5 {[%clk 0:00:03]} 62. Rb2 {[%clk 0:00:23]}  Re6 {[%clk 0:00:03]} 63. g5 {[%clk 0:00:19]}  fxg5 {[%clk 0:00:02]} 64. hxg5 {[%clk 0:00:20]}  Kg6 {[%clk 0:00:03]} 65. Kf3 {[%clk 0:00:18]}  c5 {[%clk 0:00:02]} 66. Bd2 {[%clk 0:00:16]}  d4 {[%clk 0:00:02]} 67. Bf4 {[%clk 0:00:16]}  Bd5+ {[%clk 0:00:03]} 68. Kf2 {[%clk 0:00:13]}  c4 {[%clk 0:00:03]} 69. Rb5 {[%clk 0:00:10]}  Be4 {[%clk 0:00:03]} 70. Re5 {[%clk 0:00:07]}  Rxe5 {[%clk 0:00:02]} 71. Bxe5 {[%clk 0:00:08]}  d3 {[%clk 0:00:02]} 72. Ke3 {[%clk 0:00:07]}  Bd5 {[%clk 0:00:02]} 73. Bc3 {[%clk 0:00:03]}  Kxg5 {[%clk 0:00:02]} 74. Bxg7 {[%clk 0:00:03]}  b5 {[%clk 0:00:02]} 75. Bc3 {[%clk 0:00:03]}  a4 {[%clk 0:00:02]} 76. Kd2 {[%clk 0:00:03]}  Kf4 {[%clk 0:00:02]} 77. Bb4 {[%clk 0:00:03]}  Ke4 {[%clk 0:00:02]} 78. Bc3 {[%clk 0:00:04]}  Be6 {[%clk 0:00:03]} 79. Bb4 {[%clk 0:00:05]}  Kd5 {[%clk 0:00:03]} 80. Kc3 {[%clk 0:00:05]}  Bg4 {[%clk 0:00:03]} 81. Be7 {[%clk 0:00:05]}  Ke4 {[%clk 0:00:03]} 82. Kd2 {[%clk 0:00:05]}  Kf3 {[%clk 0:00:04]} 83. Bb4 {[%clk 0:00:05]}  Be6 {[%clk 0:00:02]} 84. Bc3 {[%clk 0:00:06]}  Bd5 {[%clk 0:00:03]} 85. Bb4 {[%clk 0:00:06]}  Kf4 {[%clk 0:00:03]} 86. Bc3 {[%clk 0:00:07]}  Ke4 {[%clk 0:00:04]} 87. Bb4 {[%clk 0:00:07]}  Kd4 {[%clk 0:00:05]} 88. Bc3+ {[%clk 0:00:08]}  Kc5 {[%clk 0:00:06]} 89. Ke3 {[%clk 0:00:08]}  Bf7 {[%clk 0:00:06]} 90. Bb4+ {[%clk 0:00:07]}  Kd5 {[%clk 0:00:06]} 91. Kd2 {[%clk 0:00:07]}  Ke4 {[%clk 0:00:05]} 92. Bc3 {[%clk 0:00:06]}  Be8 {[%clk 0:00:04]} 93. Bb4 {[%clk 0:00:07]}  Kd4 {[%clk 0:00:04]} 94. Bc3+ {[%clk 0:00:08]}  Kc5 {[%clk 0:00:05]} 95. Ke3 {[%clk 0:00:08]}  Kd5 {[%clk 0:00:01]} 96. Bb4 {[%clk 0:00:07]}  Bh5 {[%clk 0:00:02]} 97. Bc3 {[%clk 0:00:04]}  Bd1 {[%clk 0:00:03]} 98. Kd2 {[%clk 0:00:05]}  Bb3 {[%clk 0:00:03]} 99. Bb4 {[%clk 0:00:05]}  Ke4 {[%clk 0:00:04]} 100. Bc3 {[%clk 0:00:05]}  Kf3 {[%clk 0:00:05]} 101. Bb4 {[%clk 0:00:05]}  Bc2 {[%clk 0:00:05]} 102. Bc3 {[%clk 0:00:05]}  Bb1 {[%clk 0:00:04]} 103. Bb4 {[%clk 0:00:06]}  Ba2 {[%clk 0:00:05]} 104. Bc3 {[%clk 0:00:05]}  Ke4 {[%clk 0:00:06]} 105. Bb4 {[%clk 0:00:06]}  Kd5 {[%clk 0:00:07]} 106. Kc1 {[%clk 0:00:06]}  Kd4 {[%clk 0:00:06]} 107. Kd2 {[%clk 0:00:07]}  Kd5 {[%clk 0:00:06]} 108. Bc3 {[%clk 0:00:07]}  Bb3 {[%clk 0:00:06]} 109. Ke3 {[%clk 0:00:08]}  Bc2 {[%clk 0:00:04]} 110. Kd2 {[%clk 0:00:07]}  Ke4 {[%clk 0:00:05]} 111. Bb4 {[%clk 0:00:08]}  Kd4 {[%clk 0:00:05]} 112. Bc3+ {[%clk 0:00:08]}  Kc5 {[%clk 0:00:06]} 113. Ba5 {[%clk 0:00:08]}  Kc6 {[%clk 0:00:06]} 114. Bb4 {[%clk 0:00:09]}  Kd5 {[%clk 0:00:06]} 115. Bc3 {[%clk 0:00:09]}  Bb3 {[%clk 0:00:06]} 1/2-1/2

[Event "January 2 Late 2024"]
[Site "https://www.chess.com"]
[Date "2024.01.02"]
[Round "9"]
[White "CamillaEffect"]
[Black "Suvorov, Alexander"]
[Result "0-1"]
[Board "62"]
[TimeControl "180+1"]
[BlackFideId "12977063"]
[WhiteElo "2646"]
[BlackElo "2515"]
[BlackTeam "GER"]
[WhiteClock "0:00:17"]
[BlackClock "0:00:25"]

1. e4 {[%clk 0:03:00]}  d6 {[%clk 0:02:59]} 2. d4 {[%clk 0:03:01]}  Nf6 {[%clk 0:02:59]} 3. Nc3 {[%clk 0:03:01]}  Nbd7 {[%clk 0:02:59]} 4. f4 {[%clk 0:03:01]}  e5 {[%clk 0:03:00]} 5. Nf3 {[%clk 0:03:01]}  exd4 {[%clk 0:03:00]} 6. Qxd4 {[%clk 0:03:00]}  c6 {[%clk 0:03:00]} 7. Bc4 {[%clk 0:02:47]}  d5 {[%clk 0:02:54]} 8. exd5 {[%clk 0:02:40]}  Bc5 {[%clk 0:02:54]} 9. Qd3 {[%clk 0:02:25]}  O-O {[%clk 0:02:54]} 10. Bd2 {[%clk 0:02:10]}  Re8+ {[%clk 0:02:53]} 11. Kf1 {[%clk 0:02:11]}  b5 {[%clk 0:02:38]} 12. Bb3 {[%clk 0:02:08]}  b4 {[%clk 0:02:26]} 13. Na4 {[%clk 0:02:05]}  cxd5 {[%clk 0:02:18]} 14. Re1 {[%clk 0:02:05]}  a5 {[%clk 0:02:14]} 15. Rxe8+ {[%clk 0:01:51]}  Qxe8 {[%clk 0:02:15]} 16. Nxc5 {[%clk 0:01:52]}  Nxc5 {[%clk 0:02:15]} 17. Qe3 {[%clk 0:01:49]}  Ba6+ {[%clk 0:02:06]} 18. Ke1 {[%clk 0:01:46]}  Nce4 {[%clk 0:01:44]} 19. Ne5 {[%clk 0:01:22]}  Qb5 {[%clk 0:01:20]} 20. c4 {[%clk 0:00:43]}  bxc3 {[%clk 0:01:10]} 21. Bxc3 {[%clk 0:00:41]}  a4 {[%clk 0:00:37]} 22. Bc2 {[%clk 0:00:39]}  a3 {[%clk 0:00:36]} 23. Bd3 {[%clk 0:00:35]}  axb2 {[%clk 0:00:32]} 24. Bxb5 {[%clk 0:00:16]}  b1=Q+ {[%clk 0:00:32]} 25. Ke2 {[%clk 0:00:16]}  Bxb5+ {[%clk 0:00:25]} 26. Kf3 {[%clk 0:00:17]} 0-1

[Event "January 2 Late 2024"]
[Site "https://www.chess.com"]
[Date "2024.01.02"]
[Round "9"]
[White "Shuvalov, Evgenij"]
[Black "Bjelobrk, Igor"]
[Result "1-0"]
[Board "63"]
[TimeControl "180+1"]
[WhiteFideId "4187237"]
[BlackFideId "4300726"]
[WhiteElo "2511"]
[BlackElo "2645"]
[WhiteTeam "FID"]
[BlackTeam "AUS"]
[WhiteClock "0:00:32"]
[BlackClock "0:00:00"]

1. d4 {[%clk 0:02:59]}  e6 {[%clk 0:02:58]} 2. e4 {[%clk 0:02:58]}  d5 {[%clk 0:02:57]} 3. Nc3 {[%clk 0:02:57]}  Bb4 {[%clk 0:02:57]} 4. e5 {[%clk 0:02:57]}  b6 {[%clk 0:02:57]} 5. Qg4 {[%clk 0:02:52]}  Bf8 {[%clk 0:02:56]} 6. Nf3 {[%clk 0:02:36]}  Ne7 {[%clk 0:02:56]} 7. Bg5 {[%clk 0:02:35]}  Ba6 {[%clk 0:02:13]} 8. Nb5 {[%clk 0:02:25]}  Qd7 {[%clk 0:01:57]} 9. Bxe7 {[%clk 0:02:22]}  Qxe7 {[%clk 0:01:56]} 10. c3 {[%clk 0:02:15]}  Qd7 {[%clk 0:01:51]} 11. a4 {[%clk 0:02:14]}  Bb7 {[%clk 0:01:46]} 12. Bd3 {[%clk 0:02:09]}  Nc6 {[%clk 0:01:43]} 13. h4 {[%clk 0:01:59]}  Na5 {[%clk 0:01:40]} 14. h5 {[%clk 0:01:53]}  a6 {[%clk 0:01:36]} 15. Na3 {[%clk 0:01:50]}  Qxa4 {[%clk 0:01:36]} 16. O-O {[%clk 0:01:48]}  Qd7 {[%clk 0:01:36]} 17. b4 {[%clk 0:01:45]}  Nc6 {[%clk 0:01:20]} 18. Nc2 {[%clk 0:01:45]}  h6 {[%clk 0:01:09]} 19. Ra2 {[%clk 0:01:41]}  b5 {[%clk 0:00:58]} 20. Rfa1 {[%clk 0:01:39]}  Rb8 {[%clk 0:00:57]} 21. Ne3 {[%clk 0:01:33]}  Ne7 {[%clk 0:00:57]} 22. Nh4 {[%clk 0:01:30]}  Bc8 {[%clk 0:00:31]} 23. f4 {[%clk 0:01:27]}  Qc6 {[%clk 0:00:31]} 24. Ra3 {[%clk 0:01:23]}  Rg8 {[%clk 0:00:28]} 25. Qf3 {[%clk 0:01:09]}  g6 {[%clk 0:00:26]} 26. Ng4 {[%clk 0:01:05]}  Kd8 {[%clk 0:00:22]} 27. Nf6 {[%clk 0:01:05]}  Rg7 {[%clk 0:00:21]} 28. g4 {[%clk 0:01:02]}  g5 {[%clk 0:00:17]} 29. fxg5 {[%clk 0:01:00]}  Rxg5 {[%clk 0:00:14]} 30. Qf4 {[%clk 0:00:56]}  Rg7 {[%clk 0:00:10]} 31. Kh2 {[%clk 0:00:54]}  Qb6 {[%clk 0:00:09]} 32. Qxh6 {[%clk 0:00:50]}  Bd7 {[%clk 0:00:08]} 33. Rxa6 {[%clk 0:00:40]}  Qb7 {[%clk 0:00:08]} 34. Ra7 {[%clk 0:00:38]}  Qc8 {[%clk 0:00:06]} 35. Nf3 {[%clk 0:00:37]}  Nc6 {[%clk 0:00:05]} 36. R7a2 {[%clk 0:00:34]}  Qb7 {[%clk 0:00:04]} 37. Qh8 {[%clk 0:00:33]}  Ke7 {[%clk 0:00:00]} 38. h6 {[%clk 0:00:32]} 1-0

[Event "January 2 Late 2024"]
[Site "https://www.chess.com"]
[Date "2024.01.02"]
[Round "9"]
[White "Tifferet, Shakked"]
[Black "Khatoev, Eduard"]
[Result "0-1"]
[Board "64"]
[TimeControl "180+1"]
[WhiteFideId "2811529"]
[BlackFideId "24145076"]
[WhiteElo "2510"]
[BlackElo "2641"]
[WhiteTeam "ISR"]
[BlackTeam "RUS"]
[WhiteClock "0:00:01"]
[BlackClock "0:00:27"]

1. e4 {[%clk 0:02:58]}  c6 {[%clk 0:02:59]} 2. Nc3 {[%clk 0:02:58]}  d5 {[%clk 0:02:59]} 3. Nf3 {[%clk 0:02:58]}  dxe4 {[%clk 0:02:59]} 4. Nxe4 {[%clk 0:02:59]}  Bf5 {[%clk 0:03:00]} 5. Ng3 {[%clk 0:02:53]}  Bg6 {[%clk 0:02:59]} 6. Bc4 {[%clk 0:02:46]}  Nd7 {[%clk 0:02:58]} 7. O-O {[%clk 0:02:45]}  e6 {[%clk 0:02:58]} 8. d4 {[%clk 0:02:44]}  Ngf6 {[%clk 0:02:57]} 9. Re1 {[%clk 0:02:43]}  Bd6 {[%clk 0:02:57]} 10. Qe2 {[%clk 0:02:31]}  Nb6 {[%clk 0:02:56]} 11. Bb3 {[%clk 0:02:28]}  Bxg3 {[%clk 0:02:52]} 12. hxg3 {[%clk 0:02:28]}  a5 {[%clk 0:02:52]} 13. a3 {[%clk 0:02:05]}  Be4 {[%clk 0:02:44]} 14. Ng5 {[%clk 0:02:00]}  Bf5 {[%clk 0:02:42]} 15. f3 {[%clk 0:01:45]}  h6 {[%clk 0:02:29]} 16. g4 {[%clk 0:01:31]}  Bg6 {[%clk 0:02:27]} 17. Nxe6 {[%clk 0:01:04]}  fxe6 {[%clk 0:02:26]} 18. Qxe6+ {[%clk 0:01:04]}  Kf8 {[%clk 0:02:25]} 19. Bf4 {[%clk 0:01:04]}  Nc8 {[%clk 0:02:18]} 20. Rad1 {[%clk 0:00:39]}  a4 {[%clk 0:01:56]} 21. Ba2 {[%clk 0:00:39]}  Be8 {[%clk 0:01:52]} 22. Bd2 {[%clk 0:00:37]}  g5 {[%clk 0:01:29]} 23. d5 {[%clk 0:00:22]}  Bf7 {[%clk 0:01:26]} 24. Qe5 {[%clk 0:00:20]}  Qd6 {[%clk 0:01:19]} 25. Qxd6+ {[%clk 0:00:15]}  Nxd6 {[%clk 0:01:19]} 26. Bc3 {[%clk 0:00:16]}  Nde8 {[%clk 0:01:17]} 27. dxc6 {[%clk 0:00:03]}  Bxa2 {[%clk 0:01:16]} 28. cxb7 {[%clk 0:00:03]}  Rb8 {[%clk 0:01:16]} 29. Rxe8+ {[%clk 0:00:02]}  Kxe8 {[%clk 0:01:14]} 30. Bxf6 {[%clk 0:00:02]}  Rf8 {[%clk 0:01:14]} 31. Bg7 {[%clk 0:00:02]}  Rg8 {[%clk 0:00:53]} 32. Be5 {[%clk 0:00:01]}  Rxb7 {[%clk 0:00:52]} 33. Kf2 {[%clk 0:00:02]}  Ke7 {[%clk 0:00:51]} 34. Rd4 {[%clk 0:00:02]}  Rxb2 {[%clk 0:00:50]} 35. Rxa4 {[%clk 0:00:02]}  Rxc2+ {[%clk 0:00:50]} 36. Kg3 {[%clk 0:00:02]}  Bc4 {[%clk 0:00:48]} 37. Ra7+ {[%clk 0:00:02]}  Ke6 {[%clk 0:00:47]} 38. Bd4 {[%clk 0:00:03]}  Bf1 {[%clk 0:00:44]} 39. Bf2 {[%clk 0:00:04]}  Rb8 {[%clk 0:00:42]} 40. Rh7 {[%clk 0:00:04]}  Rbb2 {[%clk 0:00:42]} 41. Rxh6+ {[%clk 0:00:05]}  Kf7 {[%clk 0:00:41]} 42. Bd4 {[%clk 0:00:02]}  Rxg2+ {[%clk 0:00:39]} 43. Kh3 {[%clk 0:00:02]}  Rh2+ {[%clk 0:00:27]} 44. Kg3 {[%clk 0:00:01]}  Rbg2# {[%clk 0:00:27]} 0-1

[Event "January 2 Late 2024"]
[Site "https://www.chess.com"]
[Date "2024.01.02"]
[Round "9"]
[White "Jaiveer Mahendru"]
[Black "Espinoza Villanueva, Rodrigo"]
[Result "1-0"]
[Board "65"]
[TimeControl "180+1"]
[WhiteFideId "25611151"]
[BlackFideId "5140188"]
[WhiteElo "2508"]
[BlackElo "2637"]
[WhiteTeam "IND"]
[BlackTeam "MEX"]
[WhiteClock "0:00:10"]
[BlackClock "0:00:00"]

1. e4 {[%clk 0:02:51]}  e5 {[%clk 0:02:51]} 2. Nf3 {[%clk 0:02:50]}  Nc6 {[%clk 0:02:52]} 3. Bc4 {[%clk 0:02:48]}  Bc5 {[%clk 0:02:51]} 4. c3 {[%clk 0:02:48]}  Nf6 {[%clk 0:02:50]} 5. d3 {[%clk 0:02:48]}  a6 {[%clk 0:02:49]} 6. Nbd2 {[%clk 0:02:48]}  Ba7 {[%clk 0:02:49]} 7. Nf1 {[%clk 0:02:49]}  d6 {[%clk 0:02:47]} 8. Ng3 {[%clk 0:02:48]}  Ne7 {[%clk 0:02:47]} 9. Bg5 {[%clk 0:02:45]}  Ng6 {[%clk 0:02:47]} 10. Nh5 {[%clk 0:02:45]}  O-O {[%clk 0:02:41]} 11. Nxf6+ {[%clk 0:02:42]}  gxf6 {[%clk 0:02:42]} 12. Bh6 {[%clk 0:02:43]}  Qe7 {[%clk 0:02:36]} 13. h4 {[%clk 0:02:32]}  Re8 {[%clk 0:02:32]} 14. h5 {[%clk 0:02:31]}  Nf4 {[%clk 0:02:30]} 15. Nh4 {[%clk 0:02:22]}  c6 {[%clk 0:02:23]} 16. Qf3 {[%clk 0:02:08]}  Kh8 {[%clk 0:01:58]} 17. Bxf4 {[%clk 0:02:02]}  exf4 {[%clk 0:01:59]} 18. Ng6+ {[%clk 0:02:02]}  fxg6 {[%clk 0:01:55]} 19. hxg6 {[%clk 0:02:03]}  d5 {[%clk 0:01:21]} 20. Rxh7+ {[%clk 0:01:52]}  Qxh7 {[%clk 0:01:21]} 21. gxh7 {[%clk 0:01:52]}  dxc4 {[%clk 0:01:17]} 22. Qxf4 {[%clk 0:01:53]}  Rf8 {[%clk 0:01:02]} 23. d4 {[%clk 0:01:39]}  Be6 {[%clk 0:00:59]} 24. O-O-O {[%clk 0:01:36]}  Rae8 {[%clk 0:00:55]} 25. Rh1 {[%clk 0:01:23]}  Bb8 {[%clk 0:00:50]} 26. Qh4 {[%clk 0:01:12]}  Rf7 {[%clk 0:00:48]} 27. g3 {[%clk 0:01:04]}  Ree7 {[%clk 0:00:43]} 28. f4 {[%clk 0:01:00]}  b5 {[%clk 0:00:36]} 29. Qh6 {[%clk 0:00:44]}  Bc7 {[%clk 0:00:34]} 30. Qg6 {[%clk 0:00:44]}  Rf8 {[%clk 0:00:32]} 31. f5 {[%clk 0:00:40]}  Bd7 {[%clk 0:00:29]} 32. Qh6 {[%clk 0:00:38]}  Rg7 {[%clk 0:00:28]} 33. g4 {[%clk 0:00:33]}  Rff7 {[%clk 0:00:24]} 34. Re1 {[%clk 0:00:24]}  Rxg4 {[%clk 0:00:19]} 35. e5 {[%clk 0:00:22]}  fxe5 {[%clk 0:00:19]} 36. dxe5 {[%clk 0:00:23]}  Rxf5 {[%clk 0:00:15]} 37. Rd1 {[%clk 0:00:15]}  Bxe5 {[%clk 0:00:10]} 38. Qh1 {[%clk 0:00:15]}  Be8 {[%clk 0:00:06]} 39. Rd8 {[%clk 0:00:11]}  Rf8 {[%clk 0:00:06]} 40. Qe1 {[%clk 0:00:10]}  Bf4+ {[%clk 0:00:00]} 41. Kd1 {[%clk 0:00:10]} 1-0